fUST/lending_fUST_20250624
["ID","MTS","AMOUNT","RATE_DAILY","PERIOD"]
[367181770,1750695052346,-694.31,0.00022141,2]
[367181771,1750695052355,-460.0,0.00022141,2]
[367181772,1750695052366,-585.87,0.00022141,2]
[367181773,1750695052376,-460.0,0.00022141,2]
[367181774,1750695052386,-460.0,0.00022141,2]
[367181775,1750695052397,-460.0,0.00022141,2]
[367181776,1750695052406,-460.0,0.00022141,2]
[367181777,1750695052415,-460.0,0.00022141,2]
[367181778,1750695052424,-460.0,0.00022141,2]
[367181779,1750695052435,-460.0,0.00022141,2]
[367181780,1750695052444,-460.0,0.00022141,2]
[367181781,1750695052454,-153.43552626,0.00022141,2]
[367181782,1750695052463,-460.0,0.00022141,2]
[367181783,1750695052473,-460.0,0.00022141,2]
[367181784,1750695052482,-531.14580334,0.00022141,2]
[367181785,1750695052492,-460.0,0.00022141,2]
[367181786,1750695052501,-460.0,0.00022141,2]
[367181787,1750695052512,-460.0,0.00022141,2]
[367181788,1750695052523,-460.0,0.00022141,2]
[367181789,1750695052532,-460.0,0.00022141,2]
[367181790,1750695052542,-460.0,0.00022141,2]
[367181791,1750695052551,-460.0,0.00022141,2]
[367181792,1750695052562,-460.0,0.00022141,2]
[367181793,1750695052571,-228.3356228,0.00022141,2]
[367181794,1750695052581,-460.0,0.00022141,2]
[367181795,1750695052591,-1472.57,0.00022141,2]
[367181796,1750695052601,-1101.95,0.00022141,2]
[367181797,1750695052610,-697.18,0.00022141,2]
[367181798,1750695052620,-460.0,0.00022141,2]
[367181799,1750695052629,-519.63,0.00022141,2]
[367181800,1750695052639,-506.34,0.00022141,2]
[367181801,1750695052649,-460.0,0.00022141,2]
[367181802,1750695052659,-460.0,0.00022141,2]
[367181803,1750695052668,-460.0,0.00022141,2]
[367181804,1750695052678,-438.72843198,0.00022141,2]
[367181805,1750695052688,-529.96,0.00022141,2]
[367181806,1750695052698,-460.0,0.00022141,2]
[367181807,1750695052708,-460.0,0.00022141,2]
[367181808,1750695052717,-460.0,0.00022141,2]
[367181809,1750695052727,-460.0,0.00022141,2]
[367181810,1750695052737,-460.0,0.00022141,2]
[367181811,1750695052747,-772.43,0.00022141,2]
[367181812,1750695052757,-460.0,0.00022141,2]
[367181813,1750695052766,-703.03,0.00022141,2]
[367181814,1750695052776,-2988.47,0.00022141,2]
[367181815,1750695052786,-8032.03,0.00022141,2]
[367181816,1750695052795,-460.0,0.00022141,2]
[367181817,1750695052806,-460.0,0.00022141,2]
[367181818,1750695052815,-460.0,0.00022141,2]
[367181819,1750695052824,-587.87,0.00022141,2]
[367181820,1750695052834,-1030.53,0.00022141,2]
[367181821,1750695052844,-629.75,0.00022141,2]
[367181822,1750695052854,-460.0,0.00022141,2]
[367181823,1750695052863,-597.62,0.00022141,2]
[367181824,1750695052873,-460.0,0.00022141,2]
[367181825,1750695052882,-643.92,0.00022141,2]
[367181826,1750695052892,-460.0,0.00022141,2]
[367181827,1750695052902,-460.0,0.00022141,2]
[367181828,1750695052912,-699.24,0.00022141,2]
[367181829,1750695052921,-460.0,0.00022141,2]
[367181830,1750695052931,-460.0,0.00022141,2]
[367181831,1750695052940,-460.0,0.00022141,2]
[367181832,1750695052949,-460.0,0.00022141,2]
[367181833,1750695052958,-460.0,0.00022141,2]
[367181834,1750695052968,-3562.05,0.00022141,2]
[367181835,1750695052978,-460.0,0.00022141,2]
[367181836,1750695052988,-460.0,0.00022141,2]
[367181837,1750695052998,-1834.78,0.00022141,2]
[367181838,1750695053009,-606.39726898,0.00022141,2]
[367181839,1750695053019,-1370.2,0.00022141,2]
[367181840,1750695053028,-460.0,0.00022141,2]
[367181841,1750695053040,-893.28,0.00022141,2]
[367181842,1750695053050,-460.0,0.00022141,2]
[367181843,1750695053060,-460.0,0.00022141,2]
[367181844,1750695053069,-320.0,0.00022141,2]
[367181845,1750695053078,-227.76062445,0.00022141,2]
[367181846,1750695053088,-460.0,0.00022141,2]
[367181847,1750695053097,-460.0,0.00022141,2]
[367181848,1750695053106,-1685.24,0.00022141,2]
[367181849,1750695053115,-460.0,0.00022141,2]
[367181850,1750695053125,-460.0,0.00022141,2]
[367181851,1750695053134,-464.44,0.00022141,2]
[367181852,1750695053143,-460.0,0.00022141,2]
[367181853,1750695053153,-460.0,0.00022141,2]
[367181854,1750695053162,-544.51,0.00022141,2]
[367181855,1750695053172,-460.0,0.00022141,2]
[367181856,1750695053181,-460.0,0.00022141,2]
[367181857,1750695053191,-460.0,0.00022141,2]
[367181858,1750695053200,-460.0,0.00022141,2]
[367181859,1750695053209,-481.68,0.00022141,2]
[367181860,1750695053219,-460.0,0.00022141,2]
[367181861,1750695053228,-302.77446442,0.00022141,2]
[367181862,1750695053238,-460.0,0.00022141,2]
[367181863,1750695053247,-460.0,0.00022141,2]
[367181864,1750695053257,-631.24,0.00022141,2]
[367181865,1750695053266,-460.0,0.00022141,2]
[367181866,1750695053276,-460.0,0.00022141,2]
[367181867,1750695053284,-460.0,0.00022141,2]
[367181868,1750695053294,-460.0,0.00022141,2]
[367181869,1750695053303,-468.97,0.00022141,2]
[367181870,1750695053312,-952.49,0.00022141,2]
[367181871,1750695053321,-547.71,0.00022141,2]
[367181872,1750695053330,-460.0,0.00022141,2]
[367181873,1750695053339,-3204.23,0.00022141,2]
[367181874,1750695053349,-886.57,0.00022141,2]
[367181875,1750695053358,-352.70176802,0.00022141,2]
[367181876,1750695053368,-1147.11,0.00022141,2]
[367181877,1750695053378,-460.0,0.00022141,2]
[367181878,1750695053387,-1939.51,0.00022141,2]
[367181879,1750695053397,-460.0,0.00022141,2]
[367181880,1750695053407,-460.0,0.00022141,2]
[367181881,1750695053417,-488.19,0.00022141,2]
[367181882,1750695053428,-460.0,0.00022141,2]
[367181883,1750695053439,-460.0,0.00022141,2]
[367181884,1750695053448,-1339.33,0.00022141,2]
[367181885,1750695053458,-619.12,0.00022141,2]
[367181886,1750695053468,-460.0,0.00022141,2]
[367181887,1750695053477,-778.82,0.00022141,2]
[367181888,1750695053488,-482.75,0.00022141,2]
[367181889,1750695053499,-1075.57,0.00022141,2]
[367181890,1750695053509,-460.0,0.00022141,2]
[367181891,1750695053523,-460.0,0.00022141,2]
[367181892,1750695053533,-1310.04,0.00022141,2]
[367181893,1750695053544,-460.0,0.00022141,2]
[367181894,1750695053554,-460.0,0.00022141,2]
[367181895,1750695053563,-472.68,0.00022141,2]
[367181896,1750695053573,-460.0,0.00022141,2]
[367181897,1750695053582,-717.95,0.00022141,2]
[367181898,1750695053592,-1833.22,0.00022141,2]
[367181899,1750695053602,-300.0,0.00022141,2]
[367181900,1750695053611,-460.0,0.00022141,2]
[367181901,1750695053621,-703.62,0.00022141,2]
[367181902,1750695053630,-460.0,0.00022141,2]
[367181903,1750695053639,-160.0,0.00022141,2]
[367181904,1750695053648,-460.0,0.00022142,2]
[367181905,1750695053658,-460.0,0.00022142,2]
[367181906,1750695053667,-460.0,0.00022142,2]
[367181907,1750695053676,-460.0,0.00022142,2]
[367181908,1750695053686,-500.0,0.00022142,2]
[367181909,1750695053695,-500.0,0.00022142,2]
[367181910,1750695053704,-1741.5,0.00022142,2]
[367181911,1750695053714,-1741.5,0.00022142,2]
[367181912,1750695053723,-435.735149,0.00022143,2]
[367181913,1750695053732,-386.66980465,0.00022143,2]
[367181914,1750695053742,-460.0,0.00022143,2]
[367181915,1750695053751,-460.0,0.00022143,2]
[367181916,1750695053760,-460.0,0.00022143,2]
[367181917,1750695053770,-899.93,0.00022143,2]
[367181918,1750695053781,-1247.69,0.00022143,2]
[367181919,1750695053790,-1042.81,0.00022143,2]
[367181920,1750695053800,-470.17,0.00022143,2]
[367181921,1750695053809,-460.0,0.00022143,2]
[367181922,1750695053818,-460.0,0.00022143,2]
[367181923,1750695053828,-460.0,0.00022143,2]
[367181924,1750695053840,-460.0,0.00022143,2]
[367181925,1750695053850,-460.0,0.00022143,2]
[367181926,1750695053859,-461.03255266,0.00022143,2]
[367181927,1750695053869,-460.0,0.00022143,2]
[367181928,1750695053878,-425.45391066,0.00022143,2]
[367181929,1750695053888,-460.0,0.00022143,2]
[367181930,1750695053897,-1298.26,0.00022143,2]
[367181931,1750695053906,-460.0,0.00022143,2]
[367181932,1750695053916,-2612.41,0.00022143,2]
[367181933,1750695053925,-460.0,0.00022143,2]
[367181934,1750695053936,-460.0,0.00022143,2]
[367181935,1750695053945,-460.0,0.00022143,2]
[367181936,1750695053955,-460.0,0.00022143,2]
[367181937,1750695053964,-535.48,0.00022143,2]
[367181938,1750695053973,-346.44578676,0.00022143,2]
[367181939,1750695053983,-460.0,0.00022143,2]
[367181940,1750695053993,-541.1,0.00022143,2]
[367181941,1750695054006,-460.0,0.00022143,2]
[367181942,1750695054015,-480.44,0.00022143,2]
[367181943,1750695054025,-460.0,0.00022143,2]
[367181944,1750695054034,-460.0,0.00022143,2]
[367181945,1750695054044,-1061.12,0.00022143,2]
[367181946,1750695054054,-1081.71,0.00022143,2]
[367181947,1750695054063,-863.96,0.00022143,2]
[367181948,1750695054072,-460.0,0.00022143,2]
[367181949,1750695054082,-667.4,0.00022143,2]
[367181950,1750695054092,-814.51,0.00022143,2]
[367181951,1750695054101,-1796.51,0.00022143,2]
[367181952,1750695054111,-620.23,0.00022143,2]
[367181953,1750695054121,-1861.3,0.00022143,2]
[367181954,1750695054130,-460.0,0.00022143,2]
[367181955,1750695054140,-5518.68,0.00022143,2]
[367181956,1750695054150,-908.71,0.00022143,2]
[367181957,1750695054160,-1836.22,0.00022143,2]
[367181958,1750695054170,-460.0,0.00022143,2]
[367181959,1750695054180,-2045.52,0.00022143,2]
[367181960,1750695054190,-460.0,0.00022143,2]
[367181961,1750695054200,-460.0,0.00022143,2]
[367181962,1750695054210,-1612.44,0.00022143,2]
[367181963,1750695054219,-1029.94,0.00022143,2]
[367181964,1750695054229,-6941.15,0.00022143,2]
[367181965,1750695054239,-6321.75,0.00022143,2]
[367181966,1750695054249,-794.47,0.00022143,2]
[367181967,1750695054258,-460.0,0.00022143,2]
[367181968,1750695054268,-460.0,0.00022143,2]
[367181969,1750695054277,-6105.4,0.00022143,2]
[367181970,1750695054287,-4430.2,0.00022143,2]
[367181971,1750695054296,-893.18,0.00022143,2]
[367181972,1750695054306,-1681.36,0.00022143,2]
[367181973,1750695054316,-550.8,0.00022143,2]
[367181974,1750695054326,-945.85,0.00022143,2]
[367181975,1750695054336,-1150.64,0.00022143,2]
[367181976,1750695054346,-505.55,0.00022143,2]
[367181977,1750695054356,-460.0,0.00022143,2]
[367181978,1750695054366,-7241.11,0.00022143,2]
[367181979,1750695054376,-4135.45,0.00022143,2]
[367181980,1750695054385,-157.28162691,0.00022143,2]
[367181981,1750695054395,-701.76,0.00022143,2]
[367181982,1750695054405,-579.96,0.00022143,2]
[367181983,1750695054414,-460.0,0.00022143,2]
[367181984,1750695054424,-503.24,0.00022143,2]
[367181985,1750695054434,-950.84,0.00022143,2]
[367181986,1750695054443,-742.78,0.00022143,2]
[367181987,1750695054455,-1064.83,0.00022143,2]
[367181988,1750695054466,-501.13,0.00022147,2]
[367181989,1750695054476,-1741.5,0.00022147,2]
[367181990,1750695054486,-167.45607275,0.00022156,2]
[367181991,1750695054497,-1741.5,0.00022206,2]
[367181992,1750695054506,-581.96,0.00022207,2]
[367181993,1750695054518,-460.0,0.00022207,2]
[367181994,1750695054528,-460.0,0.00022207,2]
[367181995,1750695054537,-460.0,0.00022207,2]
[367181996,1750695054547,-460.0,0.00022207,2]
[367181997,1750695054556,-460.0,0.00022207,2]
[367181998,1750695054566,-190.79176551,0.00022207,2]
[367181999,1750695054576,-572.39,0.00022207,2]
[367182000,1750695054585,-460.0,0.00022207,2]
[367182001,1750695054597,-460.0,0.00022207,2]
[367182002,1750695054606,-460.0,0.00022207,2]
[367182003,1750695054616,-486.96733093,0.00022207,2]
[367182004,1750695054625,-1389.87,0.00022207,2]
[367182005,1750695054635,-460.0,0.00022207,2]
[367182006,1750695054645,-460.0,0.00022207,2]
[367182007,1750695054655,-992.22,0.00022207,2]
[367182008,1750695054665,-460.0,0.00022207,2]
[367182009,1750695054676,-460.0,0.00022207,2]
[367182010,1750695054687,-266.62724688,0.00022207,2]
[367182011,1750695054697,-460.0,0.00022207,2]
[367182012,1750695054706,-460.0,0.00022207,2]
[367182013,1750695054716,-460.0,0.00022207,2]
[367182014,1750695054725,-460.0,0.00022207,2]
[367182015,1750695054735,-460.0,0.00022207,2]
[367182016,1750695054745,-460.0,0.00022207,2]
[367182017,1750695054755,-460.0,0.00022207,2]
[367182018,1750695054764,-460.0,0.00022207,2]
[367182019,1750695054774,-460.0,0.00022207,2]
[367182020,1750695054784,-460.0,0.00022207,2]
[367182021,1750695054794,-460.0,0.00022207,2]
[367182022,1750695054804,-460.0,0.00022207,2]
[367182023,1750695054814,-460.0,0.00022207,2]
[367182024,1750695054823,-827.68,0.00022207,2]
[367182025,1750695054833,-460.0,0.00022207,2]
[367182026,1750695054843,-460.0,0.00022207,2]
[367182027,1750695054853,-460.0,0.00022207,2]
[367182028,1750695054864,-752.67,0.00022207,2]
[367182029,1750695054873,-460.0,0.00022207,2]
[367182030,1750695054883,-500.0,0.00022207,2]
[367182031,1750695054893,-460.0,0.00022207,2]
[367182032,1750695054903,-210.54537437,0.00022207,2]
[367182033,1750695054914,-460.0,0.00022207,2]
[367182034,1750695054923,-460.0,0.00022207,2]
[367182035,1750695054934,-911.77,0.00022207,2]
[367182036,1750695054944,-460.0,0.00022207,2]
[367182037,1750695054953,-460.0,0.00022207,2]
[367182038,1750695054963,-534.54,0.00022207,2]
[367182039,1750695054973,-725.0,0.00022207,2]
[367182040,1750695054983,-460.0,0.00022207,2]
[367182041,1750695054993,-1633.04,0.00022207,2]
[367182042,1750695055003,-529.23,0.00022207,2]
[367182043,1750695055013,-460.0,0.00022207,2]
[367182044,1750695055023,-460.0,0.00022207,2]
[367182045,1750695055034,-460.0,0.00022207,2]
[367182046,1750695055044,-460.0,0.00022207,2]
[367182047,1750695055055,-460.0,0.00022207,2]
[367182048,1750695055066,-460.0,0.00022207,2]
[367182049,1750695055076,-460.0,0.00022207,2]
[367182050,1750695055086,-507.07,0.00022207,2]
[367182051,1750695055097,-608.9,0.00022207,2]
[367182052,1750695055107,-168.0,0.00022233,2]
[367182053,1750695055117,-793.19,0.00022254,2]
[367182054,1750695055129,-460.0,0.00022254,2]
[367182055,1750695055139,-367.38767853,0.00022254,2]
[367182056,1750695055148,-460.0,0.00022254,2]
[367182057,1750695055159,-460.0,0.00022254,2]
[367182058,1750695055170,-600.99871865,0.00022254,2]
[367182059,1750695055182,-460.0,0.00022254,2]
[367182060,1750695055193,-460.0,0.00022254,2]
[367182061,1750695055203,-600.17,0.00022254,2]
[367182062,1750695055213,-1166.81,0.00022254,2]
[367182063,1750695055222,-151.0,0.00022254,7]
[367182064,1750695055233,-2699.37,0.00022254,2]
[367182065,1750695055243,-151.0,0.00022254,7]
[367182066,1750695055253,-1049.98,0.00022254,2]
[367182067,1750695055263,-653.64,0.00022254,2]
[367182068,1750695055274,-556.62,0.00022254,2]
[367182069,1750695055284,-607.5,0.00022254,2]
[367182070,1750695055294,-460.0,0.00022254,2]
[367182071,1750695055304,-460.0,0.00022254,2]
[367182072,1750695055314,-1186.537698,0.00022254,2]
[367182073,1750695055323,-1186.537698,0.00022254,2]
[367182074,1750695055333,-739.3,0.00022254,2]
[367182075,1750695055343,-460.0,0.00022254,2]
[367182076,1750695055352,-460.0,0.00022254,2]
[367182077,1750695055363,-2097.03,0.00022254,2]
[367182078,1750695055373,-460.0,0.00022254,2]
[367182079,1750695055384,-2271.15,0.00022254,2]
[367182080,1750695055395,-1150.94,0.00022254,2]
[367182081,1750695055405,-2679.84,0.00022254,2]
[367182082,1750695055416,-16823.56,0.00022254,2]
[367182083,1750695055426,-1741.5,0.00022255,2]
[367182084,1750695055437,-1741.5,0.00022255,2]
[367182085,1750695055447,-1741.5,0.00022255,2]
[367182086,1750695055457,-1741.5,0.00022255,2]
[367182087,1750695055467,-1741.61,0.00022255,2]
[367182088,1750695055477,-1221.69,0.00022256,2]
[367182089,1750695055486,-541.16748903,0.00022256,2]
[367182090,1750695055496,-460.0,0.00022256,2]
[367182091,1750695055506,-1343.17,0.00022256,2]
[367182092,1750695055517,-648.91,0.00022256,2]
[367182093,1750695055527,-460.0,0.00022256,2]
[367182094,1750695055536,-460.0,0.00022256,2]
[367182095,1750695055547,-756.65,0.00022256,2]
[367182096,1750695055557,-460.0,0.00022256,2]
[367182097,1750695055567,-460.0,0.00022256,2]
[367182098,1750695055577,-460.0,0.00022256,2]
[367182099,1750695055588,-3518.29,0.00022256,2]
[367182100,1750695055598,-460.0,0.00022256,2]
[367182101,1750695055608,-460.0,0.00022256,2]
[367182102,1750695055617,-460.0,0.00022256,2]
[367182103,1750695055627,-460.0,0.00022256,2]
[367182104,1750695055637,-1125.19,0.00022256,2]
[367182105,1750695055647,-460.0,0.00022256,2]
[367182106,1750695055656,-722.87,0.00022256,2]
[367182107,1750695055666,-460.0,0.00022256,2]
[367182108,1750695055676,-205.184865,0.00022256,7]
[367182109,1750695055688,-151.0,0.00022256,7]
[367182110,1750695055698,-460.0,0.00022256,2]
[367182111,1750695055708,-460.0,0.00022256,2]
[367182112,1750695055719,-338.794941,0.00022256,7]
[367182113,1750695055729,-338.794941,0.00022256,7]
[367182114,1750695055739,-486.89,0.00022256,2]
[367182115,1750695055749,-460.0,0.00022256,2]
[367182116,1750695055759,-460.0,0.00022256,2]
[367182117,1750695055769,-460.0,0.00022256,2]
[367182118,1750695055779,-832.81,0.00022256,2]
[367182119,1750695055790,-460.0,0.00022256,2]
[367182120,1750695055800,-746.46,0.00022256,2]
[367182121,1750695055811,-460.0,0.00022256,2]
[367182122,1750695055821,-460.0,0.00022256,2]
[367182123,1750695055831,-993.68,0.00022256,2]
[367182124,1750695055842,-913.06,0.00022256,2]
[367182125,1750695055853,-663.99,0.00022256,2]
[367182126,1750695055863,-495.38,0.00022256,2]
[367182127,1750695055874,-700.84,0.00022256,2]
[367182128,1750695055884,-1058.12,0.00022256,2]
[367182129,1750695055895,-1000.0,0.00022321,2]
[367182130,1750695055906,-460.0,0.00022366,2]
[367182131,1750695055917,-460.0,0.00022366,2]
[367182132,1750695056105,-460.0,0.00022366,2]
[367182133,1750695056116,-238.50825546,0.00022366,2]
[367182134,1750695056126,-460.0,0.00022366,2]
[367182135,1750695056136,-460.0,0.00022366,2]
[367182136,1750695056146,-571.09,0.00022366,2]
[367182137,1750695056156,-460.0,0.00022366,2]
[367182138,1750695056166,-591.18,0.00022366,2]
[367182139,1750695056176,-460.0,0.00022366,2]
[367182140,1750695056197,-695.26,0.00022366,2]
[367182141,1750695056208,-460.0,0.00022366,2]
[367182142,1750695056219,-460.0,0.00022366,2]
[367182143,1750695056230,-460.0,0.00022366,2]
[367182144,1750695056241,-460.0,0.00022366,2]
[367182145,1750695056253,-460.0,0.00022366,2]
[367182146,1750695056264,-460.0,0.00022366,2]
[367182147,1750695056275,-460.0,0.00022404,2]
[367182148,1750695056286,-672.63,0.00022404,2]
[367182149,1750695056297,-460.0,0.00022404,2]
[367182150,1750695056308,-460.0,0.00022404,2]
[367182151,1750695056318,-460.0,0.00022404,2]
[367182152,1750695056329,-870.0,0.00022404,2]
[367182153,1750695056339,-467.63,0.00022404,2]
[367182154,1750695056350,-460.0,0.00022404,2]
[367182155,1750695056362,-568.24,0.00022404,2]
[367182156,1750695056373,-460.0,0.00022404,2]
[367182157,1750695056384,-713.65,0.00022404,2]
[367182158,1750695056395,-6530.67,0.00022404,2]
[367182159,1750695056405,-460.0,0.00022404,2]
[367182160,1750695056416,-460.0,0.00022404,2]
[367182161,1750695056426,-460.0,0.00022412,2]
[367182162,1750695056437,-460.0,0.00022412,2]
[367182163,1750695056447,-460.0,0.00022412,2]
[367182164,1750695056458,-1117.73,0.00022412,2]
[367182165,1750695056469,-460.0,0.00022412,2]
[367182166,1750695056479,-460.0,0.00022412,2]
[367182167,1750695056490,-1093.95,0.00022412,2]
[367182168,1750695056500,-1143.04,0.00022412,2]
[367182169,1750695056512,-460.0,0.00022413,2]
[367182170,1750695056525,-1364.13,0.00022413,2]
[367182171,1750695056535,-460.0,0.00022413,2]
[367182172,1750695056546,-792.16,0.00022413,2]
[367182173,1750695056556,-1076.17,0.00022413,2]
[367182174,1750695056567,-593.68,0.00022413,2]
[367182175,1750695056577,-190.81179801,0.00022414,2]
[367182176,1750695056587,-646.56,0.00022414,2]
[367182177,1750695056598,-460.0,0.00022414,2]
[367182178,1750695056608,-548.63,0.00022414,2]
[367182179,1750695056619,-460.0,0.00022414,2]
[367182180,1750695056628,-5755.87,0.00022414,2]
[367182181,1750695056638,-460.0,0.00022414,2]
[367182182,1750695056648,-6124.54,0.00022414,2]
[367182183,1750695056657,-460.0,0.00022414,2]
[367182184,1750695056667,-1683.77,0.00022414,2]
[367182185,1750695056678,-696.61,0.00022414,2]
[367182186,1750695056690,-1042.25,0.00022414,2]
[367182187,1750695056699,-460.0,0.00022414,2]
[367182188,1750695056710,-265.38496868,0.00022414,2]
[367182189,1750695057624,-460.0,0.0002159,2]
[367182190,1750695057634,-460.0,0.00021864,2]
[367182191,1750695057644,-4495.57759518,0.0002211,2]
[367182192,1750695057655,-460.0,0.00022138,2]
[367182193,1750695057665,-4495.57759518,0.00022315,2]
[367182194,1750695057675,-460.0,0.00022412,2]
[367182195,1750695057686,-194.61503132,0.00022414,2]
[367182196,1750695057696,-460.0,0.00022414,2]
[367182197,1750695057706,-2967.75,0.00022414,2]
[367182198,1750695057716,-6587.16,0.00022414,2]
[367182199,1750695057726,-1335.52,0.00022414,2]
[367182200,1750695057735,-460.0,0.00022414,2]
[367182201,1750695057745,-460.0,0.00022414,2]
[367182202,1750695057755,-2444.61,0.00022414,2]
[367182203,1750695057765,-816.98,0.00022414,2]
[367182204,1750695057775,-2026.45,0.00022414,2]
[367182205,1750695057785,-4341.83,0.00022414,2]
[367182206,1750695057795,-1295.39,0.00022414,2]
[367182207,1750695057804,-1428.47,0.00022414,2]
[367182208,1750695057814,-460.0,0.00022415,2]
[367182209,1750695057826,-460.0,0.00022415,2]
[367182210,1750695057836,-716.5,0.00022415,2]
[367182211,1750695057845,-460.0,0.00022415,2]
[367182212,1750695057855,-712.96,0.00022415,2]
[367182213,1750695057864,-694.31,0.00022415,2]
[367182214,1750695057874,-460.0,0.00022415,2]
[367182215,1750695057884,-585.87,0.00022415,2]
[367182216,1750695057894,-460.0,0.00022415,2]
[367182217,1750695057903,-460.0,0.00022415,2]
[367182218,1750695057913,-460.0,0.00022415,2]
[367182219,1750695057923,-460.0,0.00022415,2]
[367182220,1750695057932,-460.0,0.00022415,2]
[367182221,1750695057943,-460.0,0.00022415,2]
[367182222,1750695057953,-460.0,0.00022415,2]
[367182223,1750695057962,-460.0,0.00022415,2]
[367182224,1750695057972,-460.0,0.00022415,2]
[367182225,1750695057981,-460.0,0.00022415,2]
[367182226,1750695057991,-460.0,0.00022415,2]
[367182227,1750695058001,-460.0,0.00022415,2]
[367182228,1750695058010,-460.0,0.00022415,2]
[367182229,1750695058020,-533.05496491,0.00022415,2]
[367182230,1750695058029,-460.0,0.00022415,2]
[367182231,1750695058039,-460.0,0.00022415,2]
[367182232,1750695058048,-460.0,0.00022415,2]
[367182233,1750695058058,-1472.57,0.00022415,2]
[367182234,1750695058067,-1101.95,0.00022415,2]
[367182235,1750695058077,-697.18,0.00022415,2]
[367182236,1750695058086,-457.63209664,0.00022415,2]
[367182237,1750695058096,-519.63,0.00022415,2]
[367182238,1750695058106,-506.34,0.00022415,2]
[367182239,1750695058116,-460.0,0.00022415,2]
[367182240,1750695058125,-460.0,0.00022415,2]
[367182241,1750695058135,-460.0,0.00022415,2]
[367182242,1750695058145,-529.96,0.00022415,2]
[367182243,1750695058155,-460.0,0.00022415,2]
[367182244,1750695058164,-460.0,0.00022415,2]
[367182245,1750695058174,-369.39682644,0.00022415,2]
[367182246,1750695058183,-460.0,0.00022415,2]
[367182247,1750695058199,-460.0,0.00022415,2]
[367182248,1750695058208,-772.43,0.00022415,2]
[367182249,1750695058218,-460.0,0.00022415,2]
[367182250,1750695058227,-703.03,0.00022415,2]
[367182251,1750695058236,-2988.47,0.00022415,2]
[367182252,1750695058246,-8032.03,0.00022415,2]
[367182253,1750695058255,-460.0,0.00022415,2]
[367182254,1750695058265,-460.0,0.00022415,2]
[367182255,1750695058274,-460.0,0.00022415,2]
[367182256,1750695058284,-1030.53,0.00022415,2]
[367182257,1750695058293,-629.75,0.00022415,2]
[367182258,1750695058303,-453.17029561,0.00022415,2]
[367182259,1750695058312,-597.62,0.00022415,2]
[367182260,1750695058379,-643.92,0.00022415,2]
[367182261,1750695058388,-460.0,0.00022415,2]
[367182262,1750695058397,-460.0,0.00022415,2]
[367182263,1750695058406,-699.24,0.00022415,2]
[367182264,1750695058416,-460.0,0.00022415,2]
[367182265,1750695058425,-460.0,0.00022415,2]
[367182266,1750695058434,-460.0,0.00022415,2]
[367182267,1750695058443,-341.98892982,0.00022415,2]
[367182268,1750695058453,-460.0,0.00022415,2]
[367182269,1750695058462,-3562.05,0.00022415,2]